[Event "Summer Chess Classic-B 2022"]
[Site "Saint Louis"]
[Date "2022.06.04"]
[Round "3.1"]
[White "Ali Marandi, Cemil Can"]
[Black "Harutyunyan, Tigran K."]
[Result "1-0"]
[ECO "C45"]
[WhiteElo "2532"]
[BlackElo "2550"]
[Annotator "TA"]
[PlyCount "105"]
[EventDate "2022.05.31"]
[EventType "tourn"]
[EventCountry "USA"]
[SourceTitle "playchess.com"]
[Source "ChessBase"]
[SourceQuality "1"]
[TimeControl "40/5400+30:1800+30"]

{[%evp 14,105,-5,-16,-21,-24,-21,-30,-18,-29,-21,-24,-16,-30,-12,-34,-25,-23,-21,-42,-42,-39,-33,-44,-41,-38,0,0,0,0,0,0,29,28,53,43,46,35,42,42,42,38,43,42,42,31,32,35,54,40,37,47,91,79,90,75,75,75,75,75,75,72,89,107,87,79,360,359,356,356,289,273,314,295,613,563,933,958,896,892,699,667,1116,1131,1054,1007,1117,1100,1015,979,947,654,868,817]} 1. e4 {[%emt 0:00:03]} e5 {[%emt 0:00:16]} 2. Nf3 {[%emt 0:00:06]} Nc6 {[%emt 0:00:07]} 3. d4 {[%emt 0:00:05]} exd4 {[%emt 0:00:28]} 4. Nxd4 {[%emt 0:00:06]} Nf6 {[%emt 0:01:17][%cal Bg8f6,Bf6d5,Bd5b4][%mdl 32]} 5. Nxc6 {[%emt 0:00:15]} bxc6 {[%emt 0:00:09]} 6. e5 {[%emt 0:00:07]} Qe7 {[%emt 0:00:23]} 7. Qe2 {[%emt 0:00:07]} Nd5 {[%emt 0:00:09]} 8. h4 {[%emt 0:00:07]} Qe6 {[%emt 0:01:09] C45: Scotch Game.} 9. Nd2 $1 {[%emt 0:00:40] The main line 9.Nd2 scores better than 9.g3.} a5 {[%emt 0:01:22]} 10. g3 {[%emt 0:04:35]} Nb4 {[%emt 0:17:54][%csl LRa2,LRc2] Black has an edge.} 11. Nf3 {[%emt 0:13:01]} Ba6 {[%emt 0:03:49]} 12. c4 $1 {[%emt 0:05:26]} Qg6 {[%emt 0:10:16]} 13. Kd1 {[%emt 0:02:47] Inhibits Nc2. a3 is the strong threat.} c5 $1 {[%emt 0:06:22]} 14. a3 {[%emt 0:01:28]} (14. h5 $5 {[%cal Rh5g6]} Qb6 15. Ke1 $11 (15. a3 Nc6 $11)) 14... Nc6 {[%emt 0:01:35]} 15. h5 {[%emt 0:00:52]} Qe6 {[%emt 0:00:46]} 16. Bd2 {[%emt 0:01:22]} Be7 {[%emt 0:07:39] Against Rh4} 17. Bc3 {[%emt 0:01:21]} O-O {[%emt 0:02:12]} 18. Qe4 {[%emt 0:01:08] Against d5} f5 {[%emt 0:09:59]} 19. Qd5 {[%emt 0:00:20]} Nd8 {[%emt 0:00:28]} 20. Nd2 {[%emt 0:01:20]} (20. Qxa8 Bb7 21. Qxb7 Nxb7 $17) 20... Bb7 {[%emt 0:04:32]} 21. Bg2 {[%emt 0:00:29]} Bxd5 {[%emt 0:02:17]} 22. Bxd5 {[%emt 0:00:03]} a4 {[%emt 0:09:17][%cal Of5f4]} 23. f4 {[%emt 0:01:08] [#]} g5 $146 {[%emt 0:08:53][%cal Og5f4]} ({Predecessor:} 23... Nc6 24. Nf3 Rfd8 25. Kc2 Kf8 26. Bxe6 dxe6 27. Rad1 Rxd1 28. Rxd1 Ke8 29. Ne1 Ra7 {0-1 (77) Mchedlishvili,M (2595)-Sargissian,G (2694) Sharjah 2022}) 24. hxg6 $1 {[%emt 0:05:13] The board is on fire.} hxg6 {[%emt 0:00:04][%cal Og8g7]} 25. Kc2 {[%emt 0:02:28]} Kg7 {[%emt 0:02:58] And now ...Qa6 would win.} 26. Bxe6 {[%emt 0:02:48]} Nxe6 {[%emt 0:00:06]} 27. Nf3 {[%emt 0:01:16]} (27. Rad1 {keeps more tension.} Nd4+ 28. Kd3 Rab8 29. Rh2) 27... Rh8 {[%emt 0:00:12]} 28. Rxh8 {[%emt 0:07:15]} Rxh8 {[%emt 0:00:16]} 29. Rd1 {[%emt 0:00:06]} Rd8 {[%emt 0:00:58]} 30. b3 {[%emt 0:02:30]} axb3+ {[%emt 0:00:06]} 31. Kxb3 {[%emt 0:00:05]} Kf7 {[%emt 0:00:05]} 32. a4 {[%emt 0:00:31][%cal Ba3a4,Ba4a5][%mdl 32]} Rb8+ {[%emt 0:04:35]} 33. Kc2 {[%emt 0:01:34]} d6 {[%emt 0:03:15]} 34. a5 {[%emt 0:02:04]} Ke8 {[%emt 0:00:21]} 35. Rh1 {[%emt 0:03:47]} Nf8 {[%emt 0:00:59]} 36. Rh8 {[%emt 0:05:23] Black must now prevent e6.} Kf7 {[%emt 0:00:08]} 37. Ne1 {[%emt 0:06:13]} dxe5 {[%emt 0:02:02]} 38. fxe5 {[%emt 0:03:00]} ({Much worse is} 38. Bxe5 $6 Bf6 39. Bxf6 Kxf6 $11) 38... Rb7 {[%emt 0:01:05]} 39. Nd3 {[%emt 0:01:33]} g5 $2 {[%emt 0:00:02][%mdl 8192] [#] Black cannot hold the game after this.} (39... c6 $16 {is a better defense.}) 40. e6+ $1 $18 {[%emt 0:05:06]} Kxe6 {[%emt 0:01:27]} 41. Rh6+ {[%emt 0:36:16]} Kd7 {[%emt 0:30:05] [#]} 42. Ne5+ $1 {[%emt 0:08:35]} Kc8 {[%emt 0:00:00]} 43. Rh8 {[%emt 0:00:00] Threatens to win with Ng6.} Kd8 $2 {[%emt 0:00:00]} (43... Bd6 44. Nf7 Be7) 44. Ng6 {[%emt 0:00:00] White is clearly winning.} Ke8 {[%emt 0:00:00]} 45. Nxf8 {[%emt 0:00:00]} ({Weaker is} 45. Bg7 Kf7 46. Bxf8 Bf6 47. Bxc5 (47. Rh6 Rb2+ 48. Kc1 Ra2 $16) 47... Rb2+ 48. Kc1 Ra2 $16) 45... Bxf8 {[%emt 0:00:00][%mdl 4096] Endgame KRB-KRB} 46. Bg7 $1 {[%emt 0:00:00]} Kf7 {[%emt 0:00:00]} 47. Bxf8 {[%emt 0:00:00] KRB-KR} Ra7 {[%emt 0:00:00]} 48. Bxc5 {[%emt 0:00:00]} Rxa5 {[%emt 0:00:00]} 49. Rh7+ {[%emt 0:00:00]} Ke6 {[%emt 0:00:00]} 50. Rxc7 {[%emt 0:00:00]} Ra2+ {[%emt 0:00:00]} 51. Kd3 {[%emt 0:00:00]} Rg2 {[%emt 0:00:00]} 52. Re7+ {[%emt 0:00:00]} Kf6 {[%emt 0:00:00]} 53. Re3 {[%emt 0:00:00] Weighted Error Value: White=0.02 (flawless) /Black=0.28 (precise)} 1-0

[Event "Summer Chess Classic-B 2022"]
[Site "Saint Louis"]
[Date "2022.06.04"]
[Round "3.2"]
[White "Vazquez, Guillermo"]
[Black "Burke, John M"]
[Result "1-0"]
[ECO "C54"]
[WhiteElo "2557"]
[BlackElo "2579"]
[Annotator "TA"]
[PlyCount "119"]
[EventDate "2022.05.31"]
[EventType "tourn"]
[EventCountry "USA"]
[SourceTitle "playchess.com"]
[Source "ChessBase"]
[SourceQuality "1"]
[TimeControl "40/5400+30:1800+30"]

{[%evp 13,119,17,26,19,17,14,12,14,6,4,7,25,18,7,8,0,0,0,0,0,0,-31,-23,-20,94,81,98,66,98,68,50,67,96,86,85,70,65,66,69,74,65,72,89,17,195,164,166,178,267,2,2,4,128,117,318,295,398,376,368,136,191,193,220,233,225,217,283,272,291,281,318,318,318,318,1855,1822,1855,1855,1855,1183,4985,1714,3775,2203,2190,1862,5458,4926,5225,3872,6295,6123,6319,4686,29980,29977,29953,5081,29971,29974,29974,29975,29975,29976,29976,29976,29968,29951]} 1. e4 {[%emt 0:00:07]} e5 {[%emt 0:00:08]} 2. Nf3 {[%emt 0:00:25]} Nc6 {[%emt 0:00:07]} 3. Bc4 {[%emt 0:00:35]} Bc5 {[%emt 0:00:23]} 4. O-O {[%emt 0:01:15]} Nf6 {[%emt 0:00:05]} 5. d3 {[%emt 0:00:09]} O-O {[%emt 0:00:28]} 6. h3 {[%emt 0:01:10]} d6 {[%emt 0:01:03]} 7. c3 {[%emt 0:00:29]} a6 {[%emt 0:02:12]} 8. Re1 {[%emt 0:01:25] 8.a4 gains popularity. C54: Giuoco Piano: 4 c3 Nf6, main lines with 5 d4 and 5 d3.} h6 {[%emt 0:01:52]} 9. a4 {[%emt 0:01:23]} a5 {[%emt 0:01:20]} 10. Nbd2 {[%emt 0:03:44] The position is equal.} Be6 {[%emt 0:00:49]} 11. b3 {[%emt 0:03:35]} d5 {[%emt 0:04:02]} 12. exd5 {[%emt 0:02:28]} Nxd5 {[%emt 0:00:06]} 13. Ne4 {[%emt 0:00:18] [#]} Ba7 $146 {[%emt 0:07:07]} ({Predecessor:} 13... Bb6 14. Bd2 f5 15. Ng3 Qd6 16. Nf1 Rae8 17. Bb5 Bd7 18. Ne3 Bxe3 19. fxe3 e4 20. dxe4 fxe4 {0-1 (48) Duda,J (2743)-So,W (2770) Chess.com INT 2020}) 14. Bd2 {[%emt 0:05:24]} f5 {[%emt 0:10:00]} 15. Ng3 {[%emt 0:03:41][%cal Be4g3,Bg3f1,Bf1h2,Bh2f3][%mdl 32]} Qd6 {[%emt 0:00:42]} 16. Qe2 {[%emt 0:13:34][%cal Rf3e5]} Rae8 $1 {[%emt 0:01:59]} 17. Nxe5 {[%emt 0:01:01]} f4 $1 {[%emt 0:05:58]} 18. Nf1 {[%emt 0:05:27] [#]} Nxe5 {[%emt 0:25:31]} (18... Bxf2+ $1 $11 19. Qxf2 (19. Kxf2 Bf7 $17) 19... Nxe5) 19. Qxe5 $16 {[%emt 0:00:28]} Qd7 {[%emt 0:00:07] ...Bf7 is the strong threat.} (19... Qc5 $2 20. d4 Qc6 21. Bb5 $18) 20. Qh5 $36 {[%emt 0:03:22][%cal Oe1e6][%mdl 2048] White is pushing.} (20. d4 Bf7 21. Bxd5 (21. Bb5 $2 c6 $19) 21... Rxe5 22. Bxf7+ Qxf7 $17) 20... c6 $1 {[%emt 0:01:00][%cal Of4f3]} 21. Nh2 {[%emt 0:04:20]} Rf5 {[%emt 0:02:32]} 22. Qd1 {[%emt 0:04:52]} b5 {[%emt 0:06:22]} 23. Bxd5 {[%emt 0:02:52]} Rxd5 {[%emt 0:01:21]} 24. d4 {[%emt 0:02:57]} (24. Bxf4 Rxd3 25. Qe2 Rxc3 26. axb5 cxb5 $11) 24... b4 {[%emt 0:02:27]} 25. Nf3 {[%emt 0:02:32]} ({Not} 25. Bxf4 bxc3 26. Nf3 Bxd4 27. Nxd4 Rxd4 $17) 25... bxc3 {[%emt 0:00:37]} 26. Bxc3 {[%emt 0:00:03]} c5 {[%emt 0:00:48][%cal Rc5d4]} 27. Bxa5 {[%emt 0:01:45]} cxd4 {[%emt 0:00:05]} 28. Bd2 {[%emt 0:04:16]} (28. Ne5 $1 $16 {[%cal Re5d7]} Qb7 29. Bd2) 28... Rf8 $2 {[%emt 0:12:53]} (28... d3 $1 $11) 29. Ne5 {[%emt 0:05:07]} Rxe5 {[%emt 0:03:11]} 30. Rxe5 {[%emt 0:00:04][%cal Be1e5,Be5b5,Bb5b7][%mdl 32] Threatens to win with Qe1.} f3 {[%emt 0:00:10]} (30... d3 $142) 31. Qf1 $2 {[%emt 0:06:55]} ({Stronger than} 31. gxf3 d3 $11) ({Don't do} 31. Bb4 $6 Rf6 $16) (31. Qe1 $18 Rf6 32. g4) 31... d3 $11 {[%emt 0:01:37] Hoping for ...fxg2.} 32. Be3 {[%emt 0:02:59] And now Bxa7 would win.} Bb8 {[%emt 0:00:48] [#]} (32... fxg2 $1 $11 33. Qxg2 Bxb3) 33. Rb5 $1 $16 {[%emt 0:03:03] Black is on the road to losing.} fxg2 $2 {[%emt 0:03:40]} (33... Rd8 $16 {keeps fighting.}) 34. Qxg2 $18 {[%emt 0:00:36]} Rd8 {[%emt 0:02:57]} 35. Rb7 {[%emt 0:04:54]} Bc7 {[%emt 0:00:04]} 36. Rd1 $2 {[%emt 0:00:09]} (36. Rc1 $18 {and the rest is easy.} Bd5 {[#]} 37. Rbxc7 $1 Qxc7 38. Rxc7 Bxg2 39. Kxg2) 36... Bd5 {[%emt 0:00:55]} (36... Qf7 $16) 37. Rxd3 {[%emt 0:00:21]} Bxg2 {[%emt 0:01:55]} 38. Rxd7 {[%emt 0:00:05] Chess con chili.} Bxb7 {[%emt 0:00:05]} 39. Rxc7 {[%emt 0:00:16][%mdl 4096] Endgame KRB-KRB} Rd1+ {[%emt 0:00:08]} 40. Kh2 {[%emt 0:00:03]} Bd5 {[%emt 0:00:07]} 41. b4 {[%emt 0:32:25][%cal Bb3b4,Bb4b5,Bb5b6][%mdl 32]} g5 {[%emt 0:03:53]} 42. Rc1 {[%emt 0:00:00]} Rxc1 {[%emt 0:00:13]} 43. Bxc1 {[%emt 0:00:00] aiming for b5. KB-KB} Kf7 $2 {[%emt 0:01:24]} (43... Bb3 44. a5 Bc4) 44. b5 {[%emt 0:00:00]} Kg6 {[%emt 0:08:08]} 45. a5 {[%emt 0:00:00]} Kf5 {[%emt 0:05:07]} 46. Kg3 {[%emt 0:00:00]} h5 {[%emt 0:06:25]} 47. f3 {[%emt 0:00:00]} Bc4 {[%emt 0:00:23]} 48. b6 {[%emt 0:00:00] White wants to mate with b7.} Ba6 {[%emt 0:00:04]} 49. Ba3 {[%emt 0:00:00]} Bb7 {[%emt 0:01:31]} 50. Be7 {[%emt 0:00:00]} Ba6 {[%emt 0:01:51]} 51. Bd8 {[%emt 0:00:00]} Bc8 {[%emt 0:00:24]} 52. Kf2 {[%emt 0:00:00]} Bb7 {[%emt 0:01:33]} 53. Ke3 {[%emt 0:00:00] Threatening mate with Kd4.} g4 {[%emt 0:00:11]} 54. fxg4+ {[%emt 0:00:00]} hxg4 {[%emt 0:00:04]} 55. h4 {[%emt 0:00:00]} (55. hxg4+ $142 Ke5 56. g5 Kf5 57. Kd4 Kg6 58. Kc5 Ba6 59. Kc6 Kf5 60. b7) 55... g3 {[%emt 0:00:58]} 56. h5 {[%emt 0:00:00][%cal Bh4h5,Bh5h6][%mdl 32] White mates.} g2 {[%emt 0:00:55]} 57. Kf2 {[%emt 0:00:00]} Ke6 {[%emt 0:00:07]} 58. h6 {[%emt 0:00:00]} Kf7 {[%emt 0:00:04]} 59. Bg5 {[%emt 0:00:00]} Kg6 {[%emt 0:00:02]} 60. a6 {[%emt 0:00:00] Weighted Error Value: White=0.34/Black=0.37} 1-0

[Event "Summer Chess Classic-B 2022"]
[Site "Saint Louis"]
[Date "2022.06.04"]
[Round "3.3"]
[White "Checa, Nicolas"]
[Black "Yoo, Christopher Woojin"]
[Result "1/2-1/2"]
[ECO "E48"]
[WhiteElo "2533"]
[BlackElo "2535"]
[Annotator "TA"]
[PlyCount "88"]
[EventDate "2022.05.31"]
[EventType "tourn"]
[EventCountry "USA"]
[SourceTitle "playchess.com"]
[Source "ChessBase"]
[SourceQuality "1"]
[TimeControl "40/5400+30:1800+30"]

{[%evp 11,88,10,11,-6,0,-1,11,4,19,16,18,15,27,16,21,21,31,17,25,21,22,10,49,8,188,189,170,189,183,183,180,155,209,216,229,224,235,90,82,85,85,81,86,87,83,97,92,87,82,80,94,45,108,100,120,56,58,18,98,73,89,47,143,145,166,14,23,0,0,0,12,0,0,0,16,0,0,0,27]} 1. d4 {[%emt 0:00:34]} Nf6 {[%emt 0:01:10]} 2. c4 {[%emt 0:00:08]} e6 {[%emt 0:00:09]} 3. Nc3 {[%emt 0:00:08]} Bb4 {[%emt 0:00:06]} 4. e3 {[%emt 0:00:08]} O-O {[%emt 0:00:04]} 5. Bd3 {[%emt 0:00:05]} d5 {[%emt 0:00:04]} 6. cxd5 {[%emt 0:01:34]} exd5 {[%emt 0:00:09]} 7. a3 {[%emt 0:00:04] E48: Nimzo-Indian: Rubinstein: 5 Bd3 d5 including 6 Ne2, but excluding 6 a3.} Bd6 {[%emt 0:02:31]} 8. Qc2 {[%emt 0:00:20]} c5 {[%emt 0:06:32]} 9. dxc5 {[%emt 0:08:24]} Bxc5 {[%emt 0:00:06]} 10. Nf3 {[%emt 0:07:55] [#]} Re8 $146 {[%emt 0:14:04]} ({Predecessor:} 10... Nc6 11. b4 Bb6 12. b5 Na5 13. Na4 Bg4 14. Nxb6 Qxb6 15. Nd4 Rac8 16. Qb1 Bh5 {0-1 (49) Ivanisevic,I (2601)-Navara,D (2700) Belgrade 2022}) 11. O-O {[%emt 0:00:35]} Bg4 {[%emt 0:01:33]} 12. Be2 {[%emt 0:12:05]} Nbd7 {[%emt 0:05:19]} 13. b4 {[%emt 0:06:37]} Bd6 {[%emt 0:02:31]} 14. Nb5 {[%emt 0:03:01]} Bb8 {[%emt 0:06:51]} 15. Bb2 {[%emt 0:00:15]} a6 {[%emt 0:04:16]} 16. Nbd4 {[%emt 0:01:18][%cal Bb5d4,Bd4e2,Be2c3][%mdl 32]} Ne4 {[%emt 0:01:21]} 17. Nd2 {[%emt 0:12:15]} (17. h3 $5 {[%cal Rh3g4]} Bxf3 18. Nxf3 $14 (18. Bxf3 Be5 $14)) 17... Qh4 {[%emt 0:17:16]} (17... Ne5 $11 {and Black is okay.}) 18. g3 $18 {[%emt 0:04:35]} Bxg3 {[%emt 0:00:27]} 19. fxg3 {[%emt 0:01:32]} (19. hxg3 Nxg3 20. fxg3 Qxg3+ 21. Kh1 Rac8 $11) 19... Nxg3 {[%emt 0:00:06] Hoping for ...Rac8.} 20. N2f3 $1 {[%emt 0:07:49]} (20. hxg3 Qxg3+ 21. Kh1 Qh3+ 22. Kg1 Qg3+ 23. Kh1 Qh3+ 24. Kg1 Rac8 $11) 20... Nxe2+ {[%emt 0:02:04]} 21. Nxe2 {[%emt 0:01:57]} (21. Qxe2 $6 Qh5 $16) 21... Qe7 {[%emt 0:04:52]} (21... Qh6 $16) 22. Bd4 {[%emt 0:00:27]} Qe4 {[%emt 0:02:17]} 23. Qc7 {[%emt 0:01:44]} (23. Qxe4 dxe4 24. Ng5 f6 $17) 23... Bxf3 {[%emt 0:03:40] [#]} 24. Qg3 $1 {[%emt 0:00:44]} Ne5 $16 {[%emt 0:00:43]} (24... Bg4 $2 25. Rf4 Qe7 26. Rxg4 $18) 25. Nc3 {[%emt 0:01:38][%mdl 64] Deflection} Qd3 {[%emt 0:02:39][%cal Oa6a5]} 26. Rxf3 {[%emt 0:01:43]} Nxf3+ {[%emt 0:00:19]} 27. Qxf3 {[%emt 0:00:05] aiming for Kh1.} Rad8 {[%emt 0:05:11]} 28. Rd1 {[%emt 0:03:26][%mdl 1024] White has strong compensation.} Qc2 {[%emt 0:01:39]} 29. Kh1 {[%emt 0:02:52]} Re6 {[%emt 0:04:03]} 30. Rf1 $40 {[%emt 0:00:20][%mdl 128] White attacks with force.} f6 {[%emt 0:01:11]} 31. Qg4 {[%emt 0:03:25]} (31. Rg1 $16 Kh8 32. h3 (32. Nxd5 Qe4 $14)) 31... Rdd6 {[%emt 0:02:53] [#]} ({Better is} 31... Rc6 $14) 32. Rg1 $1 {[%emt 0:01:43][%csl Gg1][%cal Rg4g7]} g6 {[%emt 0:03:19]} 33. h4 {[%emt 0:03:54]} ({White should play} 33. Qf3 $16) 33... Kf7 {[%emt 0:00:48]} 34. Qf4 {[%emt 0:01:58] Strongly threatening Qh6.} Ke8 {[%emt 0:02:20]} (34... Rc6 $1 $11 {keeps the balance.} 35. Qh6 (35. Nxd5 Qe4+ 36. Qxe4 Rxe4 $11) 35... Rxc3 36. Bxc3 (36. Qxh7+ Ke8 $14) 36... Qxc3 37. Qxh7+ Ke8) 35. Qf3 {[%emt 0:02:26]} Kf7 {[%emt 0:01:25]} 36. h5 {[%emt 0:01:26]} (36. Nxd5 Qe4 37. Qxe4 Rxe4 $17) 36... Rd8 {[%emt 0:00:20]} (36... Rc6 $1 $14) 37. Rf1 {[%emt 0:01:23][%cal Rd4f6]} ({Of course not} 37. Nxd5 $6 Qe4 38. Qxe4 Rxe4 39. hxg6+ hxg6 $11) 37... f5 {[%emt 0:00:39]} 38. Qf4 $2 {[%emt 0:00:23]} ({Don't take} 38. Nxd5 $6 Qe4 39. Nf4 (39. hxg6+ hxg6 40. Nf4 Ree8 $14) 39... Qxf3+ 40. Rxf3 Re4 $14) (38. Rf2 $18 Qc1+ 39. Kg2) 38... Rc8 $1 $11 {[%emt 0:01:19]} 39. Rf2 {[%emt 0:05:17]} Qc1+ {[%emt 0:01:08] The position is equal.} 40. Rf1 {[%emt 0:00:05] Really sharp!} Qc2 {[%emt 0:00:08]} 41. Rf2 {[%emt 0:28:39]} Qc1+ {[%emt 0:02:10]} 42. Rf1 {[%emt 0:01:24]} Qc2 {[%emt 0:00:37]} 43. Rf2 {[%emt 0:00:05]} Qc1+ {[%emt 0:00:26]} 44. Rf1 {[%emt 0:00:04]} Qc2 {[%emt 0:00:07] Weighted Error Value: White=0.25 (precise) /Black=0.20 (precise)} 1/2-1/2

[Event "Summer Chess Classic-B 2022"]
[Site "Saint Louis"]
[Date "2022.06.04"]
[Round "3.4"]
[White "Dragun, Kamil"]
[Black "Antipov, Mikhail Al."]
[Result "1/2-1/2"]
[ECO "D85"]
[WhiteElo "2571"]
[BlackElo "2592"]
[Annotator "TA"]
[PlyCount "118"]
[EventDate "2022.05.31"]
[EventType "tourn"]
[EventCountry "USA"]
[SourceTitle "playchess.com"]
[Source "ChessBase"]
[SourceQuality "1"]
[TimeControl "40/5400+30:1800+30"]

{[%evp 19,118,0,0,0,0,0,0,0,0,5,6,0,0,0,0,0,0,0,0,0,0,0,0,0,0,0,0,0,0,0,0,0,0,0,0,0,0,0,0,0,42,7,36,0,0,0,0,0,0,0,16,14,15,14,30,30,31,31,31,31,31,22,22,23,29,29,29,29,33,29,29,15,25,23,25,25,25,25,29,15,15,15,15,15,15,15,15,15,15,15,15,0,15,8,8,8,10,0,11,0,11]} 1. d4 {[%emt 0:00:08]} Nf6 {[%emt 0:00:04]} 2. c4 {[%emt 0:00:08]} g6 {[%emt 0:00:03]} 3. Nc3 {[%emt 0:00:10]} d5 {[%emt 0:00:02]} 4. cxd5 {[%emt 0:00:14]} Nxd5 {[%emt 0:00:03]} 5. e4 {[%emt 0:00:15]} Nxc3 {[%emt 0:00:03]} 6. bxc3 {[%emt 0:00:06]} Bg7 {[%emt 0:00:02]} 7. Nf3 {[%emt 0:00:15]} c5 {[%emt 0:00:04]} 8. Bb5+ {[%emt 0:00:24]} Nc6 {[%emt 0:00:09]} 9. O-O {[%emt 0:00:23]} O-O {[%emt 0:00:29]} 10. Bxc6 $1 {[%emt 0:00:08][%mdl 4] is recently more successful than 10.Be3.} bxc6 {[%emt 0:00:04]} 11. Qc2 {[%emt 0:00:18] D85: Exchange Grünfeld: Unusual White 7th moves and lines with 7 Nf3.} cxd4 {[%emt 0:00:50]} 12. cxd4 {[%emt 0:00:08]} Bg4 {[%emt 0:00:10]} 13. Ne5 $1 {[%emt 0:00:11]} Qxd4 {[%emt 0:00:09]} 14. Bb2 {[%emt 0:00:15][%cal Bc1b2,Bb2e5,Be5c3][%mdl 32]} Qb6 {[%emt 0:00:35]} 15. Rab1 {[%emt 0:00:57]} Bxe5 {[%emt 0:00:07]} 16. Bxe5 {[%emt 0:00:05]} Qa5 {[%emt 0:00:14]} 17. Bc3 {[%emt 0:00:23]} Qc5 {[%emt 0:00:04]} 18. Qb2 {[%emt 0:00:08]} a5 {[%emt 0:00:23] Inhibits Bb4.} 19. Bd4 {[%emt 0:00:12]} Qb4 {[%emt 0:00:23]} 20. Qa1 {[%emt 0:00:13]} Qd6 {[%emt 0:01:13]} 21. Qc3 {[%emt 0:08:34]} Be2 {[%emt 0:07:34][%cal Bg4e2,Be2b5,Bb5a4,Ba4c2,Bc2e4][%mdl 32]} 22. Rfe1 {[%emt 0:05:46]} Bb5 {[%emt 0:04:27]} 23. a4 {[%emt 0:10:57]} Bxa4 {[%emt 0:02:02]} 24. Bh8 {[%emt 0:06:11][%csl Gh8][%cal Rc3g7] [#]} f6 {[%emt 0:05:59]} 25. e5 {[%emt 0:00:23] [#]} fxe5 $146 {[%emt 0:01:19]} ({Predecessor:} 25... Qd8 26. exf6 exf6 27. Rb7 Rf7 28. Rxf7 Kxf7 29. h4 Qd6 30. Qc4+ Kf8 31. Re6 Qd5 32. Rxf6+ {1-0 (64) Bluebaum,M (2642)-Ivic,V (2610) Terme Catez 2022}) 26. Bxe5 {[%emt 0:07:54]} Qd5 {[%emt 0:00:08]} 27. Qa3 {[%emt 0:11:17]} Bc2 {[%emt 0:07:52]} 28. Rbc1 {[%emt 0:08:35]} (28. Qxe7 $2 Rf7 29. Qd6 Bxb1 30. Rxb1 a4 31. Qxd5 cxd5 $19) 28... Be4 {[%emt 0:05:22][%cal Of8f2] [#] Hoping for ...Rxf2!} 29. f4 {[%emt 0:18:25] aiming for Rcd1.} (29. Qxe7 Rf7 30. Qh4 Qxe5 $15) (29. Rxe4 $2 Qxe4 30. f4 Rad8 31. Qb3+ Rf7 $19) 29... Rad8 {[%emt 0:13:13]} (29... Qd3 $5 {[%cal Rd3a3]} 30. Bc3 (30. Qxe7 Rf7 $17) (30. Rc3 Qb5 $15) 30... e5 $11) 30. h3 {[%emt 0:07:44][%cal Oe1e4] Threatens to win with Rxe4!} (30. Qxe7 $5 {[%cal Re7g7]} Rd7 31. Qa3 $11 (31. Qg5 c5 $17)) 30... Rd7 {[%emt 0:09:30]} 31. Kh2 {[%emt 0:01:45][%cal Oc1d1]} (31. Rc5 Qd3 32. Rc3 Qb5 $15) (31. Qe3 $5 {[%cal Rc1c5]} Bf5 32. Bb2 $11 (32. Rc5 Qd3 $15)) 31... Rfd8 {[%emt 0:07:19]} ({Don't do} 31... Bxg2 32. Rcd1 Qe6 33. Rxd7 (33. Kxg2 Rxd1 34. Rxd1 Rxf4 $14) 33... Qxd7 34. Kxg2 $16) 32. Rcd1 {[%emt 0:08:09]} Qc4 {[%emt 0:01:06]} (32... Bd3 $2 33. Re3 $18) 33. Rxd7 {[%emt 0:00:58]} Rxd7 {[%emt 0:00:02]} 34. Qe3 {[%emt 0:00:23] Against Rd2} Bxg2 {[%emt 0:26:24]} 35. Kxg2 {[%emt 0:01:09]} Rd3 {[%emt 0:00:01] Against Qc3} 36. Qe4 {[%emt 0:02:18] Active counter play!} Qb3 {[%emt 0:01:20]} 37. Bd4 {[%emt 0:01:36]} (37. Qxc6 {gets mated.} Rd2+ 38. Kh1 Qxh3+ 39. Kg1 Qh2+ 40. Kf1 Qf2#) 37... Rg3+ {[%emt 0:01:37]} 38. Kf2 {[%emt 0:00:02] The board is on fire.} Rxh3 {[%emt 0:00:06]} 39. Qe6+ {[%emt 0:01:26]} ({Don't blunder} 39. Qxc6 $2 Rh2+ 40. Kf1 Qh3+ 41. Kg1 Qg3+ 42. Kf1 Qxf4+ 43. Kg1 Qxd4+ $19) 39... Qxe6 {[%emt 0:00:03]} 40. Rxe6 $14 {[%emt 0:00:06][%mdl 4096] Endgame KRB-KR} Kf7 {[%emt 0:02:26]} 41. Rxc6 {[%emt 0:30:06]} a4 {[%emt 0:36:16]} 42. Ra6 {[%emt 0:00:00]} a3 {[%emt 0:00:00]} 43. Be3 {[%emt 0:00:00]} (43. Bc5 {keeps more tension.} a2 44. Ke2 Rh4 45. Be3) 43... Rh5 {[%emt 0:00:00]} 44. Rxa3 {[%emt 0:00:00]} e5 {[%emt 0:00:00]} 45. Ra6 {[%emt 0:00:00]} Rf5 {[%emt 0:00:00]} 46. Ra7+ {[%emt 0:00:00]} Ke6 {[%emt 0:00:00]} 47. Kg3 {[%emt 0:00:00]} exf4+ {[%emt 0:00:00]} 48. Bxf4 {[%emt 0:00:00]} g5 {[%emt 0:00:00]} 49. Ra6+ {[%emt 0:00:00]} Kf7 {[%emt 0:00:00] The position is equal.} 50. Be3 {[%emt 0:00:00]} Rf6 {[%emt 0:00:00]} 51. Ra5 {[%emt 0:00:00]} h6 $1 {[%emt 0:00:00]} 52. Bd4 {[%emt 0:00:00]} Re6 {[%emt 0:00:00]} 53. Kf3 {[%emt 0:00:00]} Kg6 {[%emt 0:00:00]} 54. Be5 {[%emt 0:00:00]} Kf5 {[%emt 0:00:00]} 55. Bd4+ {[%emt 0:00:00]} Kg6 {[%emt 0:00:00]} 56. Be3 {[%emt 0:00:00]} Rf6+ {[%emt 0:00:00]} 57. Ke4 {[%emt 0:00:00]} Re6+ {[%emt 0:00:00]} 58. Kf3 {[%emt 0:00:00]} Rf6+ {[%emt 0:00:00]} 59. Ke4 {[%emt 0:00:00]} Re6+ {[%emt 0:00:00] Weighted Error Value: White=0.03 (flawless) /Black=0.03 (flawless)} 1/2-1/2